fUST/lending_fUST_20260205
["ID","MTS","AMOUNT","RATE_DAILY","PERIOD"]
[404527369,1770246650217,-646.22797083,0.00058082,2]
[404527370,1770246650226,-607.87,0.00058082,120]
[404527371,1770246650236,-1738.92,0.00058082,21]
[404527372,1770246650246,-500.0,0.00058082,120]
[404527373,1770246650256,-500.0,0.00058082,120]
[404527374,1770246650267,-200.0,0.00058082,120]
[404527375,1770246650277,-3626.26,0.00058082,90]
[404527376,1770246650286,-358.58685424,0.00058082,120]
[404527377,1770246650296,-500.0,0.00058082,120]
[404527378,1770246650306,-1681.26,0.00058082,120]
[404527379,1770246650315,-1113.6,0.00058082,120]
[404527380,1770246650325,-780.96,0.00058082,120]
[404527381,1770246650334,-500.0,0.00058082,120]
[404527382,1770246650343,-509.61,0.00058082,120]
[404527383,1770246650353,-680.14,0.00058082,120]
[404527384,1770246650362,-500.0,0.00058082,120]
[404527385,1770246650372,-642.13,0.00058082,120]
[404527386,1770246650380,-836.21,0.00058082,120]
[404527387,1770246650390,-639.99241071,0.00058082,120]
[404527388,1770246650399,-502.44,0.00058082,120]
[404527389,1770246650408,-500.0,0.00058082,120]
[404527390,1770246650418,-500.0,0.00058082,120]
[404527391,1770246650427,-500.0,0.00058082,55]
[404527392,1770246650436,-500.0,0.00058367,120]
[404527393,1770246650446,-151.0,0.000586,120]
[404527394,1770246650458,-156.36,0.000588,30]
[404527395,1770246650468,-300.0,0.00058904,2]
[404527396,1770246650481,-500.0,0.00058904,120]
[404527397,1770246650491,-4450.37,0.00058904,120]
[404527398,1770246650503,-518.34451197,0.00058904,120]
[404527399,1770246650512,-500.0,0.00058904,30]
[404527400,1770246650521,-500.0,0.00058904,120]
[404527401,1770246650531,-904.53,0.00058904,120]
[404527402,1770246650539,-613.03,0.00058904,120]
[404527403,1770246650550,-500.0,0.00058904,120]
[404527404,1770246650559,-822.8,0.00058904,120]
[404527405,1770246650568,-2445.14,0.00058904,120]
[404527406,1770246650577,-500.0,0.00058904,120]
[404527407,1770246650586,-500.0,0.00058904,120]
[404527408,1770246650596,-500.0,0.00058904,120]
[404527409,1770246650605,-500.0,0.00058904,120]
[404527410,1770246650614,-500.0,0.00058904,120]
[404527411,1770246650623,-500.0,0.00058904,120]
[404527412,1770246650632,-765.33,0.00058904,120]
[404527413,1770246650641,-500.0,0.00058904,120]
[404527414,1770246650650,-888.2,0.00058904,120]
[404527415,1770246650660,-751.35,0.00058904,120]
[404527416,1770246650672,-575.44,0.00058904,120]
[404527417,1770246650681,-837.4,0.00058904,120]
[404527418,1770246650690,-6185.99,0.00058904,2]
[404527419,1770246650699,-2261.9,0.00058904,10]
[404527420,1770246650709,-500.0,0.00058904,120]
[404527421,1770246650718,-500.0,0.00058904,120]
[404527422,1770246650728,-1759.83,0.00058904,2]
[404527423,1770246650737,-607.87,0.00058904,120]
[404527424,1770246650748,-1738.92,0.00058904,21]
[404527425,1770246650757,-500.0,0.00058904,120]
[404527426,1770246650766,-554.0,0.00058904,120]
[404527427,1770246650775,-200.0,0.00058904,120]
[404527428,1770246650784,-3626.26,0.00058904,90]
[404527429,1770246650794,-505.30446025,0.00058904,120]
[404527430,1770246650803,-1681.26,0.00058904,120]
[404527431,1770246650813,-1113.6,0.00058904,120]
[404527432,1770246650822,-780.96,0.00058904,120]
[404527433,1770246650831,-500.0,0.00058904,120]
[404527434,1770246650840,-509.61,0.00058904,120]
[404527435,1770246650849,-680.14,0.00058904,120]
[404527436,1770246650858,-500.0,0.00058904,120]
[404527437,1770246650867,-642.13,0.00058904,120]
[404527438,1770246650876,-836.21,0.00058904,120]
[404527439,1770246650885,-502.44,0.00058904,120]
[404527440,1770246650895,-500.0,0.00058904,120]
[404527441,1770246650904,-500.0,0.00058904,120]
[404527442,1770246650914,-500.0,0.00058904,55]
[404527443,1770246650923,-160.0,0.0005946,5]
[404527444,1770246650932,-6216.85810487,0.0005948,2]
[404527445,1770246650942,-691.31,0.000595,14]
[404527446,1770246650951,-200.0,0.00059632,120]
[404527447,1770246650960,-300.0,0.00059726,2]
[404527448,1770246650970,-500.0,0.00059726,120]
[404527449,1770246650979,-4450.37,0.00059726,120]
[404527450,1770246650988,-500.0,0.00059726,30]
[404527451,1770246650998,-500.0,0.00059726,120]
[404527452,1770246651007,-904.53,0.00059726,120]
[404527453,1770246651016,-613.03,0.00059726,120]
[404527454,1770246651026,-547.77315641,0.00059726,120]
[404527455,1770246651035,-822.8,0.00059726,120]
[404527456,1770246651045,-2445.14,0.00059726,120]
[404527457,1770246651055,-500.0,0.00059726,120]
[404527458,1770246651064,-500.0,0.00059726,120]
[404527459,1770246651074,-500.0,0.00059726,120]
[404527460,1770246651083,-500.0,0.00059726,120]
[404527461,1770246651092,-500.0,0.00059726,120]
[404527462,1770246651102,-500.0,0.00059726,120]
[404527463,1770246651111,-765.33,0.00059726,120]
[404527464,1770246651120,-500.0,0.00059726,120]
[404527465,1770246651129,-888.2,0.00059726,120]
[404527466,1770246651139,-751.35,0.00059726,120]
[404527467,1770246651149,-575.44,0.00059726,120]
[404527468,1770246651159,-837.4,0.00059726,120]
[404527469,1770246651168,-6185.99,0.00059726,2]
[404527470,1770246651178,-2261.9,0.00059726,10]
[404527471,1770246651188,-500.0,0.00059726,120]
[404527472,1770246651198,-500.0,0.00059726,120]
[404527473,1770246651208,-1759.83,0.00059726,2]
[404527474,1770246651217,-607.87,0.00059726,120]
[404527475,1770246651226,-1738.92,0.00059726,21]
[404527476,1770246651236,-569.7945607,0.00059726,120]
[404527477,1770246651245,-200.0,0.00059726,120]
[404527478,1770246651255,-3626.26,0.00059726,90]
[404527479,1770246651264,-1681.26,0.00059726,120]
[404527480,1770246651273,-1113.6,0.00059726,120]
[404527481,1770246651282,-780.96,0.00059726,120]
[404527482,1770246651291,-500.0,0.00059726,120]
[404527483,1770246651302,-509.61,0.00059726,120]
[404527484,1770246651312,-680.14,0.00059726,120]
[404527485,1770246651321,-355.137002,0.00059726,120]
[404527486,1770246651330,-642.13,0.00059726,120]
[404527487,1770246651340,-836.21,0.00059726,120]
[404527488,1770246651350,-502.44,0.00059726,120]
[404527489,1770246651359,-500.0,0.00059726,120]
[404527490,1770246651368,-500.0,0.00059726,120]
[404527491,1770246651377,-500.0,0.00059726,55]
[404527492,1770246651386,-151.0,0.000598,120]
[404527493,1770246651395,-278.32799109,0.00059826,30]
[404527494,1770246651404,-278.32799109,0.00059826,30]
[404527495,1770246651414,-1000.0,0.00059999,120]
[404527496,1770246651423,-150.0,0.0006,2]
[404527497,1770246651433,-4433.75436467,0.0006,120]
[404527498,1770246651444,-1000.0,0.0006,120]
[404527499,1770246651456,-300.0,0.00060273,2]
[404527500,1770246651466,-300.0,0.00060547,2]
[404527501,1770246651476,-500.0,0.00060547,120]
[404527502,1770246651485,-4450.37,0.00060547,120]
[404527503,1770246651495,-500.0,0.00060547,30]
[404527504,1770246651505,-500.0,0.00060547,120]
[404527505,1770246651515,-904.53,0.00060547,120]
[404527506,1770246651523,-613.03,0.00060547,120]
[404527507,1770246651532,-822.8,0.00060547,120]
[404527508,1770246651541,-2445.14,0.00060547,120]
[404527509,1770246651552,-500.0,0.00060547,120]
[404527510,1770246651561,-500.0,0.00060547,120]
[404527511,1770246651571,-500.0,0.00060547,120]
[404527512,1770246651580,-500.0,0.00060547,120]
[404527513,1770246651589,-500.0,0.00060547,120]
[404527514,1770246651598,-500.0,0.00060547,120]
[404527515,1770246651607,-765.33,0.00060547,120]
[404527516,1770246651617,-500.0,0.00060547,120]
[404527517,1770246651627,-888.2,0.00060547,120]
[404527518,1770246651636,-751.35,0.00060547,120]
[404527519,1770246651645,-575.44,0.00060547,120]
[404527520,1770246651655,-837.4,0.00060547,120]
[404527521,1770246651664,-6185.99,0.00060547,2]
[404527522,1770246651678,-2261.9,0.00060547,10]
[404527523,1770246651687,-500.0,0.00060547,120]
[404527524,1770246651697,-500.0,0.00060547,120]
[404527525,1770246651706,-1759.83,0.00060547,2]
[404527526,1770246651717,-607.87,0.00060547,120]
[404527527,1770246651726,-1738.92,0.00060547,21]
[404527528,1770246651736,-200.0,0.00060547,120]
[404527529,1770246651749,-3626.26,0.00060547,90]
[404527530,1770246651758,-1681.26,0.00060547,120]
[404527531,1770246651768,-1113.6,0.00060547,120]
[404527532,1770246651778,-780.96,0.00060547,120]
[404527533,1770246651789,-500.0,0.00060547,120]
[404527534,1770246651800,-509.61,0.00060547,120]
[404527535,1770246651810,-680.14,0.00060547,120]
[404527536,1770246651820,-642.13,0.00060547,120]
[404527537,1770246651829,-836.21,0.00060547,120]
[404527538,1770246651838,-502.44,0.00060547,120]
[404527539,1770246651848,-500.0,0.00060547,120]
[404527540,1770246651857,-500.0,0.00060547,120]
[404527541,1770246651867,-523.5304141,0.00060547,55]
[404527542,1770246651876,-303.42490903,0.00061,120]
[404527543,1770246651886,-151.0,0.00061,120]
[404527544,1770246651896,-300.0,0.00061369,2]
[404527545,1770246651905,-500.0,0.00061369,120]
[404527546,1770246651914,-4450.37,0.00061369,120]
[404527547,1770246651924,-500.0,0.00061369,30]
[404527548,1770246651933,-500.0,0.00061369,120]
[404527549,1770246651942,-904.53,0.00061369,120]
[404527550,1770246651951,-613.03,0.00061369,120]
[404527551,1770246651960,-822.8,0.00061369,120]
[404527552,1770246651970,-2445.14,0.00061369,120]
[404527553,1770246651979,-510.95311225,0.00061369,120]
[404527554,1770246651989,-500.0,0.00061369,120]
[404527555,1770246651999,-500.0,0.00061369,120]
[404527556,1770246652008,-500.0,0.00061369,120]
[404527557,1770246652017,-606.15220184,0.00061369,120]
[404527558,1770246652127,-500.0,0.00061369,120]
[404527559,1770246652136,-765.33,0.00061369,120]
[404527560,1770246652146,-500.0,0.00061369,120]
[404527561,1770246652155,-888.2,0.00061369,120]
[404527562,1770246652166,-751.35,0.00061369,120]
[404527563,1770246652176,-575.44,0.00061369,120]
[404527564,1770246652185,-837.4,0.00061369,120]
[404527565,1770246652196,-6185.99,0.00061369,2]
[404527566,1770246652205,-2261.9,0.00061369,10]
[404527567,1770246652214,-416.12167533,0.00061369,120]
[404527568,1770246652223,-500.0,0.00061369,120]
[404527569,1770246652233,-1759.83,0.00061369,2]
[404527570,1770246652242,-607.87,0.00061369,120]
[404527571,1770246652253,-1738.92,0.00061369,21]
[404527572,1770246652264,-200.0,0.00061369,120]
[404527573,1770246652276,-3626.26,0.00061369,90]
[404527574,1770246652286,-1681.26,0.00061369,120]
[404527575,1770246652297,-1113.6,0.00061369,120]
[404527576,1770246652306,-780.96,0.00061369,120]
[404527577,1770246652315,-500.0,0.00061369,120]
[404527578,1770246652324,-509.61,0.00061369,120]
[404527579,1770246652336,-680.14,0.00061369,120]
[404527580,1770246652346,-642.13,0.00061369,120]
[404527581,1770246652355,-836.21,0.00061369,120]
[404527582,1770246652364,-502.44,0.00061369,120]
[404527583,1770246652374,-500.0,0.00061369,120]
[404527584,1770246652383,-500.0,0.00061369,120]
[404527585,1770246652392,-1000.0,0.00062,120]
[404527586,1770246652402,-691.31,0.000621,14]
[404527587,1770246652411,-200.0,0.00062128,120]
[404527588,1770246652420,-352.88128375,0.00062191,2]
[404527589,1770246652429,-508.9032693,0.00062191,120]
[404527590,1770246652439,-4450.37,0.00062191,120]
[404527591,1770246652448,-500.0,0.00062191,30]
[404527592,1770246652457,-500.0,0.00062191,120]
[404527593,1770246652466,-904.53,0.00062191,120]
[404527594,1770246652475,-613.03,0.00062191,120]
[404527595,1770246652484,-822.8,0.00062191,120]
[404527596,1770246652493,-2445.14,0.00062191,120]
[404527597,1770246652502,-500.0,0.00062191,120]
[404527598,1770246652516,-500.0,0.00062191,120]
[404527599,1770246652526,-500.0,0.00062191,120]
[404527600,1770246652535,-500.0,0.00062191,120]
[404527601,1770246652545,-765.33,0.00062191,120]
[404527602,1770246652554,-500.0,0.00062191,120]
[404527603,1770246652563,-888.2,0.00062191,120]
[404527604,1770246652572,-751.35,0.00062191,120]
[404527605,1770246652581,-575.44,0.00062191,120]
[404527606,1770246652590,-837.4,0.00062191,120]
[404527607,1770246652599,-6185.99,0.00062191,2]
[404527608,1770246652608,-2261.9,0.00062191,10]
[404527609,1770246652618,-500.0,0.00062191,120]
[404527610,1770246652627,-1759.83,0.00062191,2]
[404527611,1770246652637,-607.87,0.00062191,120]
[404527612,1770246652646,-1738.92,0.00062191,21]
[404527613,1770246652658,-200.0,0.00062191,120]
[404527614,1770246652669,-3626.26,0.00062191,90]
[404527615,1770246652681,-1681.26,0.00062191,120]
[404527616,1770246652691,-1113.6,0.00062191,120]
[404527617,1770246652700,-780.96,0.00062191,120]
[404527618,1770246652710,-500.0,0.00062191,120]
[404527619,1770246652719,-509.61,0.00062191,120]
[404527620,1770246652730,-680.14,0.00062191,120]
[404527621,1770246652740,-642.13,0.00062191,120]
[404527622,1770246652750,-836.21,0.00062191,120]
[404527623,1770246652761,-502.44,0.00062191,120]
[404527624,1770246652772,-500.0,0.00062191,120]
[404527625,1770246652782,-500.0,0.00062191,120]
[404527626,1770246652793,-151.0,0.000623,120]
[404527627,1770246652802,-160.0,0.00062471,6]
[404527628,1770246652811,-14786.09,0.00063,30]
[404527629,1770246652821,-156.36,0.00063,30]
[404527630,1770246652831,-300.0,0.00063013,2]
[404527631,1770246652840,-4450.37,0.00063013,120]
[404527632,1770246652850,-500.0,0.00063013,30]
[404527633,1770246652860,-500.0,0.00063013,120]
[404527634,1770246652869,-904.53,0.00063013,120]
[404527635,1770246652878,-613.03,0.00063013,120]
[404527636,1770246652887,-822.8,0.00063013,120]
[404527637,1770246652898,-2445.14,0.00063013,120]
[404527638,1770246652908,-500.0,0.00063013,120]
[404527639,1770246652916,-500.0,0.00063013,120]
[404527640,1770246652926,-193.98235595,0.00063013,120]
[404527641,1770246652935,-500.0,0.00063013,120]
[404527642,1770246652944,-765.33,0.00063013,120]
[404527643,1770246652954,-210.54146687,0.00063013,120]
[404527644,1770246652963,-888.2,0.00063013,120]
[404527645,1770246652972,-751.35,0.00063013,120]
[404527646,1770246652982,-575.44,0.00063013,120]
[404527647,1770246652992,-837.4,0.00063013,120]
[404527648,1770246653002,-6185.99,0.00063013,2]
[404527649,1770246653013,-2261.9,0.00063013,10]
[404527650,1770246653022,-500.0,0.00063013,120]
[404527651,1770246653034,-1759.83,0.00063013,2]
[404527652,1770246653045,-607.87,0.00063013,120]
[404527653,1770246653056,-1738.92,0.00063013,21]
[404527654,1770246653066,-200.0,0.00063013,120]
[404527655,1770246653076,-3626.26,0.00063013,90]
[404527656,1770246653085,-1681.26,0.00063013,120]
[404527657,1770246653095,-1113.6,0.00063013,120]
[404527658,1770246653104,-780.96,0.00063013,120]
[404527659,1770246653114,-500.0,0.00063013,120]
[404527660,1770246653123,-509.61,0.00063013,120]
[404527661,1770246653134,-680.14,0.00063013,120]
[404527662,1770246653144,-642.13,0.00063013,120]
[404527663,1770246653153,-836.21,0.00063013,120]
[404527664,1770246653163,-502.44,0.00063013,120]
[404527665,1770246653173,-500.0,0.00063013,120]
[404527666,1770246653183,-191.71911203,0.00063013,120]
[404527667,1770246653192,-200.0,0.00063103,120]
[404527668,1770246653202,-151.0,0.000635,120]
[404527669,1770246653212,-4450.37,0.00063835,120]
[404527670,1770246653221,-500.0,0.00063835,30]
[404527671,1770246653231,-500.0,0.00063835,120]
[404527672,1770246653240,-904.53,0.00063835,120]
[404527673,1770246653251,-613.03,0.00063835,120]
[404527674,1770246653261,-822.8,0.00063835,120]
[404527675,1770246653271,-2445.14,0.00063835,120]
[404527676,1770246653280,-500.0,0.00063835,120]
[404527677,1770246653290,-500.0,0.00063835,120]
[404527678,1770246653306,-500.0,0.00063835,120]
[404527679,1770246653316,-765.33,0.00063835,120]
[404527680,1770246653325,-888.2,0.00063835,120]
[404527681,1770246653336,-751.35,0.00063835,120]
[404527682,1770246653347,-575.44,0.00063835,120]
[404527683,1770246653358,-837.4,0.00063835,120]
[404527684,1770246653367,-6185.99,0.00063835,2]
[404527685,1770246653377,-2261.9,0.00063835,10]
[404527686,1770246653388,-500.0,0.00063835,120]
[404527687,1770246653397,-1759.83,0.00063835,2]
[404527688,1770246653407,-607.87,0.00063835,120]
[404527689,1770246653416,-1738.92,0.00063835,21]
[404527690,1770246653426,-200.0,0.00063835,120]
[404527691,1770246653436,-3626.26,0.00063835,90]
[404527692,1770246653446,-1681.26,0.00063835,120]
[404527693,1770246653457,-1113.6,0.00063835,120]
[404527694,1770246653467,-780.96,0.00063835,120]
[404527695,1770246653476,-500.0,0.00063835,120]
[404527696,1770246653487,-509.61,0.00063835,120]
[404527697,1770246653498,-680.14,0.00063835,120]
[404527698,1770246653510,-642.13,0.00063835,120]
[404527699,1770246653519,-836.21,0.00063835,120]
[404527700,1770246653529,-502.44,0.00063835,120]
[404527701,1770246653539,-500.0,0.00063835,120]
[404527702,1770246653551,-1000.0,0.00064,120]
[404527703,1770246653560,-4450.37,0.00064657,120]
[404527704,1770246653570,-500.0,0.00064657,30]
[404527705,1770246653579,-500.0,0.00064657,120]
[404527706,1770246653588,-904.53,0.00064657,120]
[404527707,1770246653597,-613.03,0.00064657,120]
[404527708,1770246653607,-822.8,0.00064657,120]
[404527709,1770246653616,-2445.14,0.00064657,120]
[404527710,1770246653625,-500.0,0.00064657,120]
[404527711,1770246653635,-500.0,0.00064657,120]
[404527712,1770246653645,-500.0,0.00064657,120]
[404527713,1770246653654,-765.33,0.00064657,120]
[404527714,1770246653664,-888.2,0.00064657,120]
[404527715,1770246653676,-751.35,0.00064657,120]
[404527716,1770246653685,-575.44,0.00064657,120]
[404527717,1770246653694,-837.4,0.00064657,120]
[404527718,1770246653704,-6185.99,0.00064657,2]
[404527719,1770246653714,-2261.9,0.00064657,10]
[404527720,1770246653724,-500.0,0.00064657,120]
[404527721,1770246653734,-1759.83,0.00064657,2]
[404527722,1770246653743,-607.87,0.00064657,120]
[404527723,1770246653754,-1738.92,0.00064657,21]
[404527724,1770246653764,-268.40609053,0.00064657,120]
[404527725,1770246653774,-3626.26,0.00064657,90]
[404527726,1770246653784,-1681.26,0.00064657,120]
[404527727,1770246653793,-1113.6,0.00064657,120]
[404527728,1770246653805,-780.96,0.00064657,120]
[404527729,1770246653815,-500.0,0.00064657,120]
[404527730,1770246653824,-509.61,0.00064657,120]
[404527731,1770246653833,-680.14,0.00064657,120]
[404527732,1770246653843,-642.13,0.00064657,120]
[404527733,1770246653854,-836.21,0.00064657,120]
[404527734,1770246653864,-502.44,0.00064657,120]
[404527735,1770246653874,-500.0,0.00064657,120]
[404527736,1770246653883,-151.0,0.000647,120]
[404527737,1770246653893,-4450.37,0.00065479,120]
[404527738,1770246653902,-500.0,0.00065479,30]
[404527739,1770246653911,-500.0,0.00065479,120]
[404527740,1770246653921,-904.53,0.00065479,120]
[404527741,1770246653931,-613.03,0.00065479,120]
[404527742,1770246653941,-822.8,0.00065479,120]
[404527743,1770246653951,-2445.14,0.00065479,120]
[404527744,1770246653961,-500.0,0.00065479,120]
[404527745,1770246653972,-500.0,0.00065479,120]
[404527746,1770246653982,-500.0,0.00065479,120]
[404527747,1770246653992,-765.33,0.00065479,120]
[404527748,1770246654002,-888.2,0.00065479,120]
[404527749,1770246654012,-751.35,0.00065479,120]
[404527750,1770246654022,-575.44,0.00065479,120]
[404527751,1770246654031,-837.4,0.00065479,120]
[404527752,1770246654040,-6185.99,0.00065479,2]
[404527753,1770246654052,-2261.9,0.00065479,10]
[404527754,1770246654063,-500.0,0.00065479,120]
[404527755,1770246654073,-1759.83,0.00065479,2]
[404527756,1770246654082,-607.87,0.00065479,120]
[404527757,1770246654092,-1738.92,0.00065479,21]
[404527758,1770246654102,-3626.26,0.00065479,90]
[404527759,1770246654113,-1681.26,0.00065479,120]
[404527760,1770246654123,-1113.6,0.00065479,120]
[404527761,1770246654133,-780.96,0.00065479,120]
[404527762,1770246654143,-500.0,0.00065479,120]
[404527763,1770246654154,-509.61,0.00065479,120]
[404527764,1770246654163,-680.14,0.00065479,120]
[404527765,1770246654172,-642.13,0.00065479,120]
[404527766,1770246654182,-836.21,0.00065479,120]
[404527767,1770246654218,-502.44,0.00065479,120]
[404527768,1770246654231,-500.0,0.00065479,120]
[404527769,1770246654250,-160.0,0.00065482,7]
[404527770,1770246654267,-300.0,0.00065753,2]
[404527771,1770246654276,-1000.0,0.00066,120]
[404527772,1770246654285,-151.0,0.00066,120]
[404527773,1770246654296,-200.0,0.00066291,120]
[404527774,1770246654305,-691.31,0.000663,14]
[404527775,1770246654315,-4450.37,0.00066301,120]
[404527776,1770246654324,-500.0,0.00066301,30]
[404527777,1770246654334,-500.0,0.00066301,120]
[404527778,1770246654345,-904.53,0.00066301,120]
[404527779,1770246654354,-613.03,0.00066301,120]
[404527780,1770246654363,-822.8,0.00066301,120]
[404527781,1770246654372,-2445.14,0.00066301,120]
[404527782,1770246654381,-500.0,0.00066301,120]
[404527783,1770246654390,-500.0,0.00066301,120]
[404527784,1770246654400,-500.0,0.00066301,120]
[404527785,1770246654413,-765.33,0.00066301,120]
[404527786,1770246654429,-888.2,0.00066301,120]
[404527787,1770246654438,-751.35,0.00066301,120]
[404527788,1770246654448,-575.44,0.00066301,120]
[404527789,1770246654457,-837.4,0.00066301,120]
[404527790,1770246654467,-6185.99,0.00066301,2]
[404527791,1770246654478,-2261.9,0.00066301,10]
[404527792,1770246654492,-500.0,0.00066301,120]
[404527793,1770246654504,-1759.83,0.00066301,2]
[404527794,1770246654514,-607.87,0.00066301,120]
[404527795,1770246654523,-1738.92,0.00066301,21]
[404527796,1770246654532,-3626.26,0.00066301,90]
[404527797,1770246654541,-1681.26,0.00066301,120]
[404527798,1770246654551,-1113.6,0.00066301,120]
[404527799,1770246654561,-780.96,0.00066301,120]
[404527800,1770246654571,-500.0,0.00066301,120]
[404527801,1770246654580,-509.61,0.00066301,120]
[404527802,1770246654588,-680.14,0.00066301,120]
[404527803,1770246654598,-642.13,0.00066301,120]
[404527804,1770246654607,-836.21,0.00066301,120]
[404527805,1770246654618,-502.44,0.00066301,120]
[404527806,1770246654627,-500.0,0.00066301,120]
[404527807,1770246654637,-4450.37,0.00067123,120]
[404527808,1770246654646,-500.0,0.00067123,30]
[404527809,1770246654656,-500.0,0.00067123,120]
[404527810,1770246654665,-904.53,0.00067123,120]
[404527811,1770246654678,-613.03,0.00067123,120]
[404527812,1770246654687,-822.8,0.00067123,120]
[404527813,1770246654696,-2445.14,0.00067123,120]
[404527814,1770246654705,-500.0,0.00067123,120]
[404527815,1770246654715,-500.0,0.00067123,120]
[404527816,1770246654724,-500.0,0.00067123,120]
[404527817,1770246654733,-765.33,0.00067123,120]
[404527818,1770246654743,-888.2,0.00067123,120]
[404527819,1770246654752,-751.35,0.00067123,120]
[404527820,1770246654761,-575.44,0.00067123,120]
[404527821,1770246654770,-837.4,0.00067123,120]
[404527822,1770246654779,-6185.99,0.00067123,2]
[404527823,1770246654788,-2261.9,0.00067123,10]
[404527824,1770246654798,-500.0,0.00067123,120]
[404527825,1770246654809,-1565.30826043,0.00067123,2]
[404527826,1770246656524,741.08018794,0.00039448,2]
[404527827,1770246685839,250.0,0.00021918,45]
[404527828,1770246686144,250.0,0.00036986,72]
[404527829,1770246703266,500.0,0.00039447,15]
[404527830,1770246703292,500.0,0.00039447,7]
[404527831,1770246703321,500.0,0.00039447,15]
[404527832,1770246703346,500.0,0.00039447,15]
[404527833,1770246703370,500.0,0.00039447,15]
[404527834,1770246703395,639.34352372,0.00039447,7]
[404527835,1770246703420,500.0,0.00039447,15]
[404527836,1770246703444,500.0,0.00039447,15]
[404527837,1770246703471,300.0,0.00039447,15]
[404527838,1770246703495,500.0,0.00039447,15]
[404527839,1770246703520,622.05501607,0.00039447,15]
[404527840,1770246703544,500.0,0.00039447,15]
[404527841,1770246703575,500.0,0.00039447,15]
[404527842,1770246703604,591.67786215,0.00039447,15]
[404527860,1770247553129,-157.09347376,0.0002674,2]
[404527864,1770247692416,3907.76218477,0.00039528,120]
[404527865,1770247751103,-949.89,0.0002599,10]
[404527866,1770247751126,-949.89,0.0002599,10]
[404527867,1770247751148,-4882.87245813,0.0002599,2]
[404527868,1770247758195,-1159.95,0.0002598,10]
[404527869,1770247758214,-60606.6962,0.0002599,2]
[404527870,1770247765132,-34510.43134187,0.0002599,2]
[404527871,1770247765153,-966.63,0.0002599,10]
[404527872,1770247765176,-2157.432289,0.00026,30]
[404527873,1770247765196,-63350.68405657,0.00026,2]
[404527874,1770247770168,-154310.2491126,0.00026,2]
[404527978,1770247855332,-502.36937511,0.0002599,10]
[404527979,1770247855443,-303.15062489,0.0002599,10]
[404527980,1770247855455,-671.27,0.0002599,10]
[404527981,1770247855465,-559.39,0.0002599,10]
[404527982,1770247855480,-1200.0,0.00025999,2]
[404527983,1770247855492,-306.90211726,0.00025999,2]
[404527984,1770247855503,-287.96420691,0.00025999,2]
[404527985,1770247855516,-200.0,0.00025999,2]
[404527986,1770247855526,-180.22833512,0.00025999,2]
[404527987,1770247855538,-48263.91383069,0.00026,2]
[404527988,1770247855552,-6902.96814565,0.00026,2]
[404527993,1770247955982,5712.32238675,0.00039528,120]
[404527996,1770248036446,-166.66666666,0.0002589,2]
[404527997,1770248036474,-697.41972064,0.00025899,2]